bitfinex/quotes_BTCUSD_20240729
["timestamp","ask_amount","ask_price","bid_price","bid_amount"]
[1722222524951,0.50682345,69794.0,69793.0,0.00647547]
[1722222525166,0.96531545,69794.0,69793.0,0.00647547]
[1722222525367,1.00819305,69794.0,69793.0,0.00647547]
[1722222525888,0.73606945,69794.0,69793.0,0.00647547]
[1722222527700,0.36294745,69789.0,69788.0,0.00209147]
[1722222527900,0.73610945,69789.0,69788.0,0.00209147]
[1722222528470,1.05160145,69789.0,69788.0,0.00209147]
[1722222528658,1.12460145,69789.0,69788.0,0.00209147]
[1722222528862,1.12460145,69789.0,69788.0,0.01609147]
[1722222528863,1.22460145,69789.0,69788.0,0.01609147]
[1722222529493,1.28883675,69789.0,69788.0,0.01609147]
[1722222529855,1.21583675,69789.0,69788.0,0.01609147]
[1722222530024,1.20160145,69789.0,69788.0,0.01609147]
[1722222530237,0.16250865,69789.0,69788.0,0.01609147]
[1722222530454,0.16095445,69789.0,69788.0,0.01609147]
[1722222530877,0.16295445,69789.0,69788.0,0.01609147]
[1722222531092,0.52314289,69789.0,69788.0,0.01609147]
[1722222531293,0.64307745,69789.0,69788.0,0.00209147]
[1722222531513,0.59307745,69789.0,69788.0,0.00209147]
[1722222531720,0.59307745,69789.0,69788.0,0.01609147]
[1722222531926,0.92233945,69789.0,69788.0,0.03009147]
[1722222532135,0.92233945,69789.0,69788.0,0.01609147]
[1722222532795,0.92233945,69789.0,69774.0,0.008866]
[1722222532796,0.72855445,69775.0,69774.0,0.008866]
[1722222533009,0.87765445,69775.0,69774.0,0.008866]
[1722222533216,0.97765445,69775.0,69774.0,0.008866]
[1722222533425,1.00065445,69775.0,69774.0,0.008866]
[1722222534060,1.00065445,69775.0,69774.0,0.013866]
[1722222534411,0.99865445,69775.0,69774.0,0.013866]
[1722222534944,1.00065445,69775.0,69774.0,0.013866]
[1722222535347,1.22996245,69775.0,69774.0,0.013866]
[1722222535611,1.00065445,69775.0,69774.0,0.013866]
[1722222535844,1.22996245,69775.0,69774.0,0.013866]
[1722222536044,1.22996245,69775.0,69774.0,0.021866]
[1722222536045,0.99965445,69775.0,69774.0,0.021866]
[1722222536262,1.22896245,69775.0,69774.0,0.021866]
[1722222536462,1.28096245,69775.0,69774.0,0.021866]
[1722222536584,1.34744399,69775.0,69774.0,0.021866]
[1722222536774,1.29744399,69775.0,69774.0,0.021866]
[1722222536983,1.23096245,69775.0,69774.0,0.021866]
[1722222538180,1.33096245,69775.0,69774.0,0.021866]
[1722222538415,1.23096245,69775.0,69774.0,0.021866]
[1722222539032,1.51027045,69775.0,69774.0,0.021866]
[1722222539259,1.33096245,69775.0,69774.0,0.021866]
[1722222539492,0.98375345,69767.0,69766.0,0.008866]
[1722222539704,1.14885345,69767.0,69766.0,0.008866]
[1722222540202,1.22185345,69767.0,69766.0,0.008866]
[1722222540425,1.50118745,69767.0,69766.0,0.008866]
[1722222540919,1.50118745,69767.0,69766.0,0.022866]
[1722222541158,1.45118745,69767.0,69766.0,0.022866]
[1722222541372,1.50118745,69767.0,69766.0,0.022866]
[1722222541575,1.50118745,69767.0,69757.0,0.008866]
[1722222541576,1.24675845,69758.0,69757.0,0.008866]
[1722222541815,1.40785845,69758.0,69757.0,0.008866]
[1722222542698,1.17849445,69758.0,69757.0,0.008866]
[1722222542908,1.17949445,69758.0,69757.0,0.017866]
[1722222543538,1.3024439,69758.0,69757.0,0.017866]
[1722222543766,1.20249445,69758.0,69757.0,0.017866]
[1722222543978,0.69073045,69758.0,69757.0,0.017866]
[1722222544727,0.92009445,69758.0,69757.0,0.017866]
[1722222544953,1.40885845,69758.0,69757.0,0.017866]
[1722222545174,1.43185845,69758.0,69757.0,0.017866]
[1722222545331,1.50384829,69758.0,69757.0,0.017866]
[1722222545654,1.50484829,69758.0,69757.0,0.023866]
[1722222546082,0.99409445,69758.0,69757.0,0.023866]
[1722222546306,0.46236645,69758.0,69757.0,0.023866]
[1722222546516,0.02105445,69758.0,69757.0,0.023866]
[1722222546868,0.02105445,69758.0,69757.0,0.03381776]
[1722222547294,0.13573645,69758.0,69757.0,0.03381776]
[1722222547500,0.02105445,69758.0,69757.0,0.03381776]
[1722222547811,0.02105445,69758.0,69757.0,0.023866]
[1722222548491,0.02105445,69758.0,69757.0,0.03381776]
[1722222548701,0.002,69758.0,69757.0,0.168266]
[1722222548837,0.002,69758.0,69757.0,0.512316]
[1722222549041,0.01905445,69758.0,69757.0,0.75163072]
[1722222549254,0.002,69758.0,69757.0,0.75163072]
[1722222549746,0.01905445,69758.0,69757.0,0.17821372]
[1722222549960,0.001,69758.0,69757.0,0.16921372]
[1722222550098,0.001,69758.0,69757.0,0.28389672]
[1722222551514,0.001,69758.0,69757.0,0.51326372]
[1722222551715,0.001,69758.0,69757.0,0.28389672]
[1722222551992,0.01705445,69759.0,69758.0,0.114681]
[1722222552406,0.01705445,69759.0,69757.0,0.167266]
[1722222552407,0.001,69758.0,69757.0,0.167266]
[1722222552632,0.01705445,69759.0,69757.0,0.267949]
[1722222552861,0.01805445,69758.0,69757.0,0.084466]
[1722222553105,0.002,69758.0,69757.0,0.098466]
[1722222553272,0.01905445,69758.0,69757.0,0.098466]
[1722222553491,0.01905445,69758.0,69757.0,0.21764457]
[1722222553689,0.002,69758.0,69757.0,0.21764457]
[1722222553861,0.002,69758.0,69757.0,0.27072757]
[1722222554236,0.01905445,69758.0,69757.0,0.15604457]
[1722222554677,0.02105445,69758.0,69757.0,0.036866]
[1722222555083,0.02005445,69758.0,69757.0,0.022866]
[1722222557497,0.01805445,69758.0,69757.0,0.022866]
[1722222558039,0.01805445,69758.0,69757.0,0.03279746]
[1722222558040,0.02005445,69758.0,69757.0,0.03279746]
[1722222558479,0.01905445,69758.0,69757.0,0.008866]
[1722222559524,0.01905445,69758.0,69757.0,0.12805415]
[1722222559940,0.01905445,69758.0,69757.0,0.13798561]
[1722222560167,0.02005445,69758.0,69757.0,0.15198561]
[1722222560397,0.002,69758.0,69757.0,0.51003561]
[1722222560668,0.002,69758.0,69757.0,1.10886961]
[1722222560899,0.002,69758.0,69757.0,1.56698909]
[1722222561158,0.00049833,69758.0,69757.0,1.77551325]
[1722222561387,0.00049833,69758.0,69757.0,1.57757262]
[1722222561593,0.01705445,69779.0,69767.0,0.229332]
[1722222561803,0.01705445,69776.0,69775.0,0.114654]
[1722222562000,0.01705445,69777.0,69776.0,0.114652]
[1722222562210,0.01705445,69777.0,69776.0,0.23180108]
[1722222562429,0.01705445,69777.0,69776.0,0.12885397]
[1722222563392,0.01705445,69779.0,69776.0,0.00970489]
[1722222563596,0.01705445,69780.0,69779.0,0.114647]
[1722222563849,0.01705445,69780.0,69777.0,0.114649]
[1722222564051,0.01705445,69780.0,69779.0,0.00966976]
[1722222564257,0.01705445,69779.0,69778.0,0.00968141]
[1722222564461,0.01705445,69769.0,69768.0,0.482396]
[1722222564655,0.01705445,69769.0,69768.0,0.83087741]
[1722222564860,0.01705445,69769.0,69768.0,0.60154641]
[1722222565131,0.01705445,69769.0,69768.0,0.83087743]
[1722222566887,0.01705445,69769.0,69768.0,0.84487743]
[1722222567098,0.01705445,69769.0,69768.0,0.85442576]
[1722222567325,0.01705445,69769.0,69768.0,0.86842576]
[1722222567757,0.01705445,69769.0,69768.0,0.63909476]
[1722222567959,0.01705445,69769.0,69768.0,0.14715043]
[1722222568175,0.01905445,69769.0,69768.0,0.26181916]
[1722222568405,0.01705445,69775.0,69774.0,0.114655]
[1722222568612,0.01705445,69775.0,69772.0,0.114657]
[1722222568848,0.01705445,69775.0,69774.0,0.114655]
[1722222569070,0.01705445,69775.0,69774.0,0.23380774]
[1722222569295,0.01705445,69775.0,69774.0,0.114655]
[1722222570170,0.01860865,69776.0,69775.0,0.114653]
[1722222570422,0.01705445,69775.0,69773.0,0.229313]
[1722222570625,0.01705445,69775.0,69774.0,0.114655]
[1722222570835,0.01705445,69775.0,69774.0,0.128655]
[1722222571045,0.01705445,69775.0,69774.0,0.014]
[1722222571286,0.01705445,69773.0,69772.0,0.114657]
[1722222571487,0.01705445,69773.0,69772.0,0.2338076]
[1722222571692,0.01705445,69773.0,69772.0,0.114657]
[1722222571900,0.01705445,69773.0,69772.0,0.23380759]
[1722222572318,0.01705445,69773.0,69772.0,0.343975]
[1722222572521,0.01705445,69773.0,69772.0,0.4631256]
[1722222572928,0.01705445,69773.0,69772.0,0.4771256]
[1722222573323,0.01705445,69773.0,69772.0,0.014]
[1722222574548,0.01705445,69773.0,69772.0,0.02374026]
[1722222575206,0.01905445,69773.0,69772.0,0.02374026]
[1722222575650,0.01705445,69773.0,69772.0,0.02374026]
[1722222576830,0.01905445,69773.0,69772.0,0.03774026]
[1722222577975,1.0598202,69773.0,69772.0,0.03774026]
[1722222578200,1.0598202,69773.0,69772.0,0.028]
[1722222578414,1.1598202,69773.0,69772.0,0.028]
[1722222578827,1.1598202,69773.0,69772.0,0.014]
[1722222579265,1.2187593,69773.0,69772.0,0.014]
[1722222579473,1.2417593,69773.0,69772.0,0.014]
[1722222579682,1.2917593,69773.0,69772.0,0.014]
[1722222579886,1.39893996,69773.0,69772.0,0.014]
[1722222580076,1.34893996,69773.0,69772.0,0.016]
[1722222580206,1.2417593,69773.0,69772.0,0.016]
[1722222580404,1.2417593,69773.0,69772.0,0.002]
[1722222580603,1.2328202,69773.0,69772.0,0.002]
[1722222580877,1.3380141,69773.0,69772.0,0.002]
[1722222581027,1.23082605,69773.0,69772.0,0.002]
[1722222581228,1.3380141,69773.0,69772.0,0.002]
[1722222581456,1.2308256,69773.0,69772.0,0.002]
[1722222581655,0.90791845,69770.0,69769.0,0.0045]
[1722222581996,1.09522852,69770.0,69769.0,0.0045]
[1722222582120,1.03091845,69770.0,69769.0,0.0045]
[1722222582510,0.8659015,69770.0,69769.0,0.0045]
[1722222582738,0.84446562,69770.0,69769.0,0.0045]
[1722222582942,0.80159445,69770.0,69769.0,0.0045]
[1722222583140,0.84446356,69770.0,69769.0,0.0045]
[1722222583425,0.042871,69771.0,69769.0,0.0045]
[1722222583554,0.01805445,69773.0,69770.0,0.07154355]
[1722222583759,0.001,69773.0,69770.0,0.07154355]
[1722222584160,0.001,69773.0,69772.0,0.114659]
[1722222584371,0.001,69773.0,69772.0,0.343977]
[1722222584372,0.01805445,69773.0,69772.0,0.343977]
[1722222584822,0.01805445,69773.0,69772.0,0.114659]
[1722222585026,0.01705445,69771.0,69770.0,0.41552855]
[1722222585246,0.01705445,69771.0,69769.0,0.0045]
[1722222585444,0.01705445,69770.0,69769.0,0.0095]
[1722222585846,0.01705445,69770.0,69769.0,0.0045]
[1722222586048,0.01705445,69770.0,69769.0,0.119164]
[1722222587605,0.01705445,69771.0,69769.0,0.119164]
[1722222587817,0.01705445,69771.0,69769.0,0.133164]
[1722222588025,0.001,69770.0,69769.0,0.147164]
[1722222588236,0.001,69770.0,69769.0,0.390492]
[1722222588460,0.001,69770.0,69769.0,0.59182]
[1722222588697,0.002,69783.0,69782.0,0.114642]
[1722222588698,0.01705445,69783.0,69782.0,0.114642]
[1722222588912,0.01705445,69783.0,69782.0,0.113642]
[1722222589169,0.01705445,69783.0,69782.0,0.408327]
[1722222589396,0.01705445,69783.0,69782.0,0.179042]
[1722222589618,0.01705445,69783.0,69782.0,0.0644]
[1722222590228,0.01705445,69783.0,69782.0,0.179042]
[1722222590431,0.01705445,69783.0,69782.0,0.422327]
[1722222591198,0.01705445,69783.0,69782.0,0.436327]
[1722222593982,0.01705445,69783.0,69782.0,0.207042]
[1722222594627,0.01705445,69783.0,69782.0,0.028]
[1722222598035,0.13169545,69783.0,69782.0,0.028]
[1722222598237,0.19579545,69783.0,69782.0,0.028]
[1722222598490,0.19734965,69783.0,69782.0,0.028]
[1722222598667,0.42863165,69783.0,69782.0,0.028]
[1722222598868,0.65791365,69783.0,69782.0,0.028]
[1722222599067,0.42863165,69783.0,69782.0,0.028]
[1722222599499,0.47152727,69783.0,69782.0,0.028]
[1722222600075,0.24224527,69783.0,69782.0,0.028]
[1722222600475,0.19934965,69783.0,69782.0,0.028]
[1722222600885,0.24224762,69783.0,69782.0,0.028]
[1722222601121,0.47152962,69783.0,69782.0,0.028]
[1722222601479,0.42863165,69783.0,69782.0,0.028]
[1722222602162,0.08470865,69783.0,69782.0,0.028]
[1722222602417,0.02060865,69783.0,69782.0,0.028]
[1722222602635,0.01944865,69783.0,69782.0,0.028]
[1722222602918,0.01789445,69783.0,69782.0,0.028]
[1722222603829,0.01789445,69783.0,69782.0,0.0944]
[1722222604088,0.01789445,69783.0,69782.0,0.209042]
[1722222604297,0.01789445,69783.0,69782.0,0.438327]
[1722222604449,0.01789445,69783.0,69782.0,0.209042]
[1722222604669,0.01789445,69783.0,69782.0,0.028]
[1722222605301,0.01789445,69783.0,69782.0,0.371927]
[1722222605960,0.01789445,69783.0,69782.0,0.601212]
[1722222606161,0.01789445,69783.0,69782.0,0.371927]
[1722222606580,0.01789445,69783.0,69782.0,0.601212]
[1722222606781,0.00084,69783.0,69782.0,0.601212]
[1722222607128,0.01789445,69783.0,69782.0,0.601212]
[1722222607956,0.00084,69783.0,69782.0,0.601212]
[1722222608198,0.01789445,69783.0,69782.0,0.601212]
[1722222610652,0.00084,69783.0,69782.0,0.830497]
[1722222611239,0.00084,69783.0,69782.0,0.896297]
[1722222611884,0.00084,69783.0,69782.0,0.946297]
[1722222612079,0.00084,69783.0,69782.0,2.33101895]
[1722222612314,0.00084,69794.0,69782.0,2.33101895]
[1722222612315,0.00084,69794.0,69793.0,1.20496755]
[1722222612517,0.00084,69805.0,69804.0,0.573032]
[1722222612716,0.00084,69805.0,69804.0,1.39061056]
[1722222612915,0.00084,69805.0,69804.0,1.71982356]
[1722222613872,0.00084,69805.0,69804.0,1.71977346]
[1722222614294,0.00084,69805.0,69804.0,1.60070155]
[1722222614508,0.00084,69805.0,69804.0,1.7197694]
[1722222615099,0.00084,69805.0,69804.0,1.7337694]
[1722222615748,0.00084,69805.0,69804.0,2.04606731]
[1722222616088,0.00084,69805.0,69804.0,1.76685431]
[1722222616289,0.00084,69805.0,69804.0,2.01645631]
[1722222616491,0.00084,69805.0,69804.0,2.4595557]
[1722222616621,0.00084,69805.0,69804.0,2.6887687]
[1722222616864,0.0273,69816.0,69815.0,1.381296]
[1722222617074,0.0273,69816.0,69815.0,1.66143084]
[1722222617257,0.0273,69816.0,69815.0,1.68194876]
[1722222617430,0.0273,69816.0,69815.0,1.44136385]
[1722222617852,0.0273,69816.0,69815.0,1.74136385]
[1722222618028,0.0273,69816.0,69815.0,1.20321029]
[1722222618229,0.0273,69816.0,69815.0,1.17617158]
[1722222618652,0.0273,69816.0,69815.0,1.057119]
[1722222618852,0.0273,69816.0,69815.0,1.043119]
[1722222619063,0.0273,69816.0,69815.0,1.057119]
[1722222619428,0.01705445,69826.0,69825.0,0.114572]
[1722222619648,0.01705445,69826.0,69815.0,0.114]
[1722222619649,0.01705445,69822.0,69815.0,0.114]
[1722222619906,0.0015542,69825.0,69824.0,0.114573]
[1722222620131,0.01705445,69826.0,69825.0,0.114572]
[1722222620331,0.01705445,69828.0,69827.0,0.343705]
[1722222620531,0.01705445,69828.0,69827.0,0.572842]
[1722222620733,0.01705445,69828.0,69827.0,0.801979]
[1722222621136,0.01705445,69828.0,69827.0,0.572842]
[1722222621560,0.01705445,69828.0,69827.0,0.343705]
[1722222621783,0.01705445,69828.0,69827.0,0.357705]
[1722222622392,0.01705445,69828.0,69827.0,0.586842]
[1722222624277,0.01705445,69828.0,69827.0,0.357705]
[1722222624476,0.01705445,69828.0,69827.0,0.600842]
[1722222626085,0.01705445,69828.0,69827.0,0.142568]
[1722222627171,0.01705445,69828.0,69827.0,0.371705]
[1722222627329,0.01705445,69828.0,69827.0,0.600842]
[1722222629190,0.01705445,69828.0,69827.0,0.829979]
[1722222629784,0.01705445,69828.0,69827.0,0.434605]
[1722222629952,0.01705445,69830.0,69829.0,0.572827]
[1722222630153,0.01705445,69830.0,69829.0,0.88504291]
[1722222630356,0.01705445,69830.0,69829.0,0.84401947]
[1722222631487,0.01705445,69830.0,69829.0,0.8559369]
[1722222631687,0.01705445,69830.0,69829.0,0.6408059]
[1722222631897,0.01705445,69830.0,69829.0,0.36961343]
[1722222632266,0.01905445,69830.0,69829.0,0.36961343]
[1722222633024,0.01905445,69830.0,69829.0,0.14048243]
[1722222633228,0.16335445,69830.0,69829.0,0.03991743]
[1722222633646,0.27791745,69830.0,69829.0,0.028]
[1722222633850,0.16335445,69830.0,69829.0,0.028]
[1722222634050,0.50704445,69830.0,69829.0,0.014]
[1722222634171,0.27791745,69830.0,69829.0,0.014]
[1722222634370,0.27791745,69830.0,69829.0,0.028]
[1722222634371,0.73617145,69830.0,69829.0,0.028]
[1722222634619,0.50704445,69830.0,69829.0,0.028]
[1722222634794,0.73617145,69830.0,69829.0,0.028]
[1722222634977,0.73617145,69830.0,69829.0,0.014]
[1722222635203,0.73617145,69830.0,69813.0,0.46645618]
[1722222635204,0.01905445,69814.0,69813.0,0.46645618]
[1722222635401,0.01905445,69814.0,69813.0,0.47657718]
[1722222635402,0.16335445,69814.0,69813.0,0.47657718]
[1722222635600,0.27794445,69814.0,69813.0,0.010121]
[1722222636077,0.27794445,69814.0,69804.0,0.000924]
[1722222636078,0.01905445,69805.0,69804.0,0.000924]
[1722222636607,0.16045445,69805.0,69804.0,0.000924]
[1722222636811,0.27505845,69805.0,69804.0,0.000924]
[1722222637035,0.16045445,69805.0,69804.0,0.000924]
[1722222637412,0.16045445,69805.0,69804.0,0.014924]
[1722222637569,0.16045445,69805.0,69804.0,0.000924]
[1722222637780,0.16045445,69805.0,69804.0,0.011924]
[1722222637981,0.16045445,69805.0,69804.0,0.020924]
[1722222638174,0.16045445,69805.0,69804.0,0.011924]
[1722222638362,0.16045445,69805.0,69804.0,0.021924]
[1722222639172,0.16045445,69805.0,69804.0,0.010924]
[1722222639607,0.16045445,69805.0,69804.0,0.023924]
[1722222640026,0.50426745,69805.0,69804.0,0.010924]
[1722222640235,1.09891545,69805.0,69804.0,0.000924]
[1722222640432,1.12191545,69805.0,69804.0,0.000924]
[1722222640631,1.12191545,69805.0,69804.0,0.010924]
[1722222640807,1.12191545,69805.0,69804.0,0.013924]
[1722222641223,1.12191545,69805.0,69804.0,0.023924]
[1722222641410,1.12191545,69805.0,69804.0,0.013924]
[1722222641838,1.12491545,69805.0,69804.0,0.013924]
[1722222642457,0.59349745,69805.0,69804.0,0.013924]
[1722222642662,0.82270645,69805.0,69804.0,0.013924]
[1722222642865,0.82270645,69805.0,69804.0,0.000924]
[1722222642866,0.59349745,69805.0,69804.0,0.000924]
[1722222643272,0.59349745,69805.0,69804.0,0.013924]
[1722222643478,0.59549745,69805.0,69804.0,0.013924]
[1722222643652,0.59549745,69805.0,69804.0,0.000924]
[1722222643653,0.25168445,69805.0,69804.0,0.000924]
[1722222643862,0.16045445,69805.0,69804.0,0.000924]
[1722222644061,0.16045445,69805.0,69804.0,0.002924]
[1722222644264,0.01905445,69805.0,69804.0,0.002924]
[1722222644837,0.01905445,69805.0,69804.0,0.01148955]
[1722222645251,0.01905445,69805.0,69804.0,0.002924]
[1722222645497,0.59207645,69805.0,69804.0,0.002924]
[1722222645669,0.50586745,69805.0,69804.0,0.002924]
[1722222645902,0.50586745,69805.0,69804.0,0.000924]
[1722222646105,0.50586745,69805.0,69804.0,0.008924]
[1722222646326,0.64209745,69805.0,69804.0,0.008924]
[1722222646524,0.89430645,69805.0,69804.0,0.008924]
[1722222646767,0.90378407,69805.0,69804.0,0.008924]
[1722222646973,1.13299307,69805.0,69804.0,0.008924]
[1722222647157,1.13399307,69805.0,69804.0,0.008924]
[1722222647624,0.90478407,69805.0,69804.0,0.008924]
[1722222648380,0.90378407,69805.0,69804.0,0.008924]
[1722222648742,0.90378407,69805.0,69804.0,0.014924]
[1722222649439,1.13299307,69805.0,69804.0,0.014924]
[1722222649612,0.90378407,69805.0,69804.0,0.014924]
[1722222650386,1.00378407,69805.0,69804.0,0.014924]
[1722222650632,1.23299307,69805.0,69804.0,0.014924]
[1722222650835,1.00378407,69805.0,69804.0,0.014924]
[1722222652334,0.95378407,69805.0,69804.0,0.014924]
[1722222652509,0.93078407,69805.0,69804.0,0.014924]
[1722222653098,0.70157507,69805.0,69804.0,0.014924]
[1722222653917,0.93078407,69805.0,69804.0,0.014924]
[1722222657751,1.03371206,69805.0,69804.0,0.014924]
[1722222658004,0.93078407,69805.0,69804.0,0.014924]
[1722222658207,0.95378407,69805.0,69804.0,0.014924]
[1722222658794,1.18299307,69805.0,69804.0,0.014924]
[1722222658992,0.95378407,69805.0,69804.0,0.014924]
[1722222659199,1.23299307,69805.0,69804.0,0.014924]
[1722222659397,1.37609246,69805.0,69804.0,0.014924]
[1722222660005,1.23299307,69805.0,69804.0,0.000924]
[1722222660381,1.28899307,69805.0,69804.0,0.001924]
[1722222660583,1.00978407,69805.0,69804.0,0.001924]
[1722222661567,0.95378407,69805.0,69804.0,0.000924]
[1722222662272,0.95578407,69805.0,69804.0,0.000924]
[1722222662472,0.72657507,69805.0,69804.0,0.000924]
[1722222662587,0.95578407,69805.0,69804.0,0.000924]
[1722222663902,0.95378407,69805.0,69804.0,0.001924]
[1722222664295,0.95378407,69805.0,69804.0,0.000924]
[1722222664496,0.73057507,69805.0,69804.0,0.001924]
[1722222664743,0.19078445,69805.0,69804.0,0.001924]
[1722222664916,0.11128445,69805.0,69804.0,0.004924]
[1722222665162,0.22588845,69805.0,69804.0,0.004924]
[1722222665334,0.21988845,69805.0,69804.0,0.003924]
[1722222666292,0.44909745,69805.0,69804.0,0.003924]
[1722222666531,0.44909745,69805.0,69804.0,0.000924]
[1722222666854,0.44909745,69805.0,69804.0,0.007924]
[1722222667277,0.21988845,69805.0,69804.0,0.012924]
[1722222668102,0.44909745,69805.0,69804.0,0.012924]
[1722222668278,0.44993745,69805.0,69804.0,0.012924]
[1722222668660,0.22072845,69805.0,69804.0,0.012924]
[1722222670008,0.44993745,69805.0,69804.0,0.012924]
[1722222671122,0.67914645,69805.0,69804.0,0.012924]
[1722222671504,0.44993745,69805.0,69804.0,0.012924]
[1722222672082,0.67914645,69805.0,69804.0,0.012924]
[1722222672508,0.70214645,69805.0,69804.0,0.012924]
[1722222673476,0.83534645,69805.0,69804.0,0.012924]
[1722222673735,0.93534645,69805.0,69804.0,0.012924]
[1722222674313,1.37215484,69805.0,69804.0,0.012924]
[1722222674924,1.41491123,69805.0,69804.0,0.012924]
[1722222675383,1.37215484,69805.0,69804.0,0.012924]
[1722222675849,1.37215484,69805.0,69804.0,0.005924]
[1722222676312,1.50766762,69805.0,69804.0,0.000924]
[1722222676570,1.55766762,69805.0,69804.0,0.000924]
[1722222676782,1.47815484,69805.0,69804.0,0.001924]
[1722222676979,1.42815484,69805.0,69804.0,0.000924]
[1722222677178,1.85348304,69805.0,69804.0,0.000924]
[1722222677468,1.6789255,69805.0,69804.0,0.001924]
[1722222677642,1.6809255,69805.0,69804.0,0.001924]
[1722222677868,1.58782611,69805.0,69804.0,0.001924]
[1722222678461,1.73245335,69805.0,69804.0,0.001924]
[1722222678660,1.58782611,69805.0,69804.0,0.001924]
[1722222678924,0.20528445,69793.0,69792.0,0.0084]
[1722222679130,1.68340445,69793.0,69792.0,0.0084]
[1722222679265,1.70640445,69793.0,69792.0,0.0084]
[1722222679468,1.92824153,69793.0,69792.0,0.0084]
[1722222680095,1.92830991,69793.0,69792.0,0.0084]
[1722222680492,1.65640445,69793.0,69792.0,0.0084]
[1722222680694,1.21965545,69793.0,69792.0,0.0084]
[1722222681014,1.34850284,69793.0,69792.0,0.0084]
[1722222681216,1.34850284,69793.0,69792.0,0.0144]
[1722222681551,1.34850284,69793.0,69792.0,0.0234]
[1722222682564,1.15765545,69793.0,69792.0,0.0234]
[1722222683146,1.08065545,69793.0,69792.0,0.0234]
[1722222683498,0.48592745,69793.0,69792.0,0.0234]
[1722222683764,0.01905445,69793.0,69792.0,0.0234]
[1722222683972,0.22923,69799.0,69794.0,0.229246]
[1722222683973,0.04294056,69795.0,69794.0,0.229246]
[1722222684196,0.01705445,69808.0,69804.0,0.114606]
[1722222684408,0.01789445,69805.0,69804.0,0.946645]
[1722222684612,0.00084,69805.0,69804.0,0.95745593]
[1722222684973,0.00084,69805.0,69804.0,0.84732792]
[1722222685173,0.01789445,69805.0,69804.0,0.61811492]
[1722222685381,0.01789445,69805.0,69804.0,0.50602993]
[1722222685382,0.00184,69805.0,69804.0,0.50602993]
[1722222685614,0.00184,69805.0,69804.0,0.73524293]
[1722222685945,0.00184,69805.0,69804.0,0.74924293]
[1722222686342,0.02089445,69805.0,69804.0,0.17621093]
[1722222686546,0.01889445,69805.0,69804.0,0.17621093]
[1722222686793,0.01889445,69805.0,69804.0,0.29081693]
[1722222687627,0.00084,69805.0,69804.0,0.26981693]
[1722222687802,0.00084,69805.0,69804.0,0.15521093]
[1722222687803,0.01989445,69805.0,69804.0,0.15521093]
[1722222687983,0.01989445,69805.0,69804.0,0.18321093]
[1722222687984,0.01789445,69805.0,69804.0,0.18321093]
[1722222688189,0.01989445,69805.0,69804.0,0.02481093]
[1722222688374,0.01989445,69805.0,69804.0,0.014]
[1722222689226,0.02144865,69805.0,69804.0,0.028]
[1722222689428,0.01989445,69805.0,69804.0,0.028]
[1722222689674,0.01989445,69805.0,69804.0,0.014]
[1722222689885,0.00084,69805.0,69804.0,0.587032]
[1722222690088,0.00084,69805.0,69804.0,0.503719]
[1722222690089,0.01789445,69805.0,69804.0,0.503719]
[1722222690514,0.04290009,69824.0,69823.0,0.114575]
[1722222690723,0.04290009,69824.0,69816.0,0.1408]
[1722222690724,0.00084,69830.0,69820.0,0.22916]
[1722222690932,0.00084,69830.0,69829.0,0.114565]
[1722222691137,0.00084,69830.0,69829.0,0.484496]
[1722222691307,0.00084,69830.0,69829.0,0.713627]
[1722222692006,0.00084,69830.0,69829.0,0.484496]
[1722222692210,0.00084,69830.0,69829.0,0.53072247]
[1722222692447,0.00084,69830.0,69829.0,0.493496]
[1722222693292,0.00084,69830.0,69829.0,0.53972247]
[1722222693498,0.00084,69830.0,69829.0,0.53072247]
[1722222693705,0.00084,69830.0,69829.0,0.484496]
[1722222694558,0.00084,69830.0,69829.0,0.498496]
[1722222694765,0.00084,69830.0,69829.0,0.5457354]
[1722222694991,0.00084,69830.0,69829.0,0.741627]
[1722222695518,0.00084,69830.0,69829.0,0.7888664]
[1722222695646,0.00084,69830.0,69829.0,0.741627]
[1722222695848,0.00084,69830.0,69829.0,0.512496]
[1722222696512,0.00084,69830.0,69829.0,0.741627]
[1722222696721,0.00084,69830.0,69829.0,0.512496]
[1722222697324,0.00084,69830.0,69829.0,0.741627]
[1722222697618,0.00084,69830.0,69829.0,0.512496]
[1722222697976,0.00284,69830.0,69829.0,0.512496]
[1722222698174,0.00084,69830.0,69829.0,0.512496]
[1722222698567,0.00284,69830.0,69829.0,0.512496]
[1722222699039,0.00084,69830.0,69829.0,0.028]
[1722222699263,0.00084,69830.0,69829.0,0.142565]
[1722222699482,0.00084,69830.0,69829.0,0.028]
[1722222699914,0.00284,69830.0,69829.0,0.028]
[1722222700149,0.00084,69830.0,69829.0,0.028]
[1722222700900,0.00084,69830.0,69829.0,0.142565]
[1722222702325,0.00084,69830.0,69829.0,0.028]
[1722222702762,0.00084,69830.0,69829.0,0.518496]
[1722222702995,0.00084,69830.0,69829.0,1.0239974]
[1722222704413,0.00084,69830.0,69829.0,1.12063607]
[1722222704623,0.00084,69830.0,69829.0,1.07063607]
[1722222705985,0.00084,69830.0,69829.0,0.84150507]
[1722222706185,0.00084,69830.0,69829.0,1.15085296]
[1722222707202,0.00084,69830.0,69829.0,0.92172196]
[1722222707417,0.00084,69830.0,69829.0,0.27802596]
[1722222707697,0.00084,69830.0,69829.0,0.289365]
[1722222709101,0.00084,69830.0,69829.0,0.518496]
[1722222710324,0.00084,69830.0,69829.0,0.976758]
[1722222710500,0.00084,69830.0,69829.0,0.84358007]
[1722222711327,0.00084,69830.0,69829.0,0.7948664]
[1722222711531,0.00084,69830.0,69829.0,0.84174427]
[1722222711736,0.00084,69830.0,69829.0,1.07087527]
[1722222712162,0.00084,69830.0,69829.0,0.84174427]
[1722222712415,0.00084,69830.0,69829.0,0.9607864]
[1722222712635,0.00084,69830.0,69829.0,0.84174427]
[1722222712843,0.00084,69830.0,69829.0,0.7457912]
[1722222713052,0.00084,69830.0,69829.0,0.7930306]
[1722222713879,0.00084,69830.0,69829.0,0.7457912]
[1722222714421,0.00084,69830.0,69829.0,0.86484131]
[1722222715445,0.00084,69830.0,69829.0,1.35147231]
[1722222715646,0.00807,69847.0,69829.0,1.35147231]
[1722222715647,0.07322215,69862.0,69849.0,0.3]